Workbook

Sheet 2019년도
A1: 2019년도 월별 상생결제 현황
F2: (단위:백만원)
A3: 구분 | B3: 총 구매결제 건수 | C3: 총 구매결제 금액 (A) | D3: 총 상생결제 건수 | E3: 총 상생결제 금액 (B) | F3: 비율 (C=B/A)
A4: 1월 | B4: 158 | C4: 9665.984461 | D4: 26 | E4: 3525.985802 | F4: =E4/C4 -> 0.3647828958
A5: 2월 | B5: 114 | C5: 3253.479843 | D5: 13 | E5: 617.781616 | F5: =E5/C5 -> 0.189883339
A6: 3월 | B6: 174 | C6: 5527.249651 | D6: 21 | E6: 2427.822367 | F6: 0.4392460121
A7: 4월 | B7: 171 | C7: 5846.870319 | D7: 25 | E7: 3695.00034 | F7: 0.631962082
A8: 5월 | B8: 183 | C8: 6880.779046 | D8: 19 | E8: 2470.077273 | F8: 0.3589822107
A9: 6월 | B9: 178 | C9: 6810.709115 | D9: 23 | E9: 2794.044155 | F9: 0.4102427674
A10: 7월 | B10: 250 | C10: 7262.373642 | D10: 26 | E10: 2736.061511 | F10: 0.3767448008
A11: 8월 | B11: 146 | C11: 8162.664422 | D11: 18 | E11: 2634.109805 | F11: 0.3227022047
A12: 9월 | B12: 164 | C12: 5804.234579 | D12: 14 | E12: 1388.131488 | F12: 0.2391584057
A13: 10월 | B13: 190 | C13: 7041.712667 | D13: 19 | E13: 2023.578406 | F13: 0.2873702041
A14: 11월 | B14: 183 | C14: 4563.623604 | D14: 21 | E14: 2417.229843 | F14: 0.5296733589
A15: 12월 | B15: 285 | C15: 15802.63926 | D15: 17 | E15: 1506.722019 | F15: 0.09534622629
A16: 합계 | B16: =SUM(B4:B15) -> 2196 | C16: =SUM(C4:C15) -> 86622.32061 | D16: =SUM(D4:D15) -> 242 | E16: =SUM(E4:E15) -> 28236.54463 | F16: =E16/C16 -> 0.3259730798

Sheet 2018년도
A1: 2018년도 월별 상생결제 현황
F2: (단위:백만원)
A3: 구분 | B3: 총 구매결제 건수 | C3: 총 구매결제 금액 (A) | D3: 총 상생결제 건수 | E3: 총 상생결제 금액 (B) | F3: 비율 (C=B/A)
A4: 1월 | B4: 378 | C4: 8853.768246 | D4: 79 | E4: 1975.222831 | F4: =E4/C4 -> 0.2230940291
A5: 2월 | B5: 311 | C5: 6902.202574 | D5: 9 | E5: 964.644767 | F5: =E5/C5 -> 0.1397589765
A6: 3월 | B6: 334 | C6: 6072.958303 | D6: 41 | E6: 1222.738624 | F6: 0.2013415148
A7: 4월 | B7: 397 | C7: 10365.40817 | D7: 47 | E7: 1301.888496 | F7: 0.1255993468
A8: 5월 | B8: 276 | C8: 6571.206213 | D8: 49 | E8: 1589.863402 | F8: 0.2419439218
A9: 6월 | B9: 245 | C9: 4439.490996 | D9: 33 | E9: 1299.0192 | F9: 0.2926054363
A10: 7월 | B10: 373 | C10: 8706.355601 | D10: 43 | E10: 1672.177363 | F10: 0.1920639863
A11: 8월 | B11: 197 | C11: 6659.789263 | D11: 15 | E11: 1607.46034 | F11: 0.2413680488
A12: 9월 | B12: 157 | C12: 9773.699603 | D12: 14 | E12: 1554.017648 | F12: 0.1589999397
A13: 10월 | B13: 240 | C13: 6929.604019 | D13: 15 | E13: 1747.702619 | F13: 0.2522081513
A14: 11월 | B14: 255 | C14: 8188.536634 | D14: 22 | E14: 2651.325007 | F14: 0.3237849601
A15: 12월 | B15: 394 | C15: 10523.30128 | D15: 28 | E15: 2261.802416 | F15: 0.2149327817
A16: 합계 | B16: =SUM(B4:B15) -> 3557 | C16: =SUM(C4:C15) -> 93986.3209 | D16: =SUM(D4:D15) -> 395 | E16: =SUM(E4:E15) -> 19847.86271 | F16: =E16/C16 -> 0.2111782068
